fUSD/lending_fUSD_20240105
["ID","MTS","AMOUNT","RATE_DAILY","PERIOD"]
[310291956,1704463900396,-5436.81,0.00030958,2]
[310291957,1704463900406,-500.0,0.00030958,2]
[310291958,1704463900416,-500.0,0.00030958,2]
[310291959,1704463900425,-500.0,0.00030958,2]
[310291960,1704463900435,-826.79,0.00030958,2]
[310291961,1704463900445,-500.0,0.00030958,2]
[310291962,1704463900455,-709.6,0.00030958,2]
[310291963,1704463900465,-500.0,0.00030958,2]
[310291964,1704463900475,-500.0,0.00030958,2]
[310291965,1704463900486,-526.58,0.00030958,2]
[310291966,1704463900496,-574.8,0.00030958,2]
[310291967,1704463900505,-856.02,0.00030958,2]
[310291968,1704463900515,-2833.48,0.00030958,2]
[310291969,1704463900525,-557.01,0.00030958,2]
[310291970,1704463900535,-701.77,0.00030958,2]
[310291971,1704463900547,-500.0,0.00030958,2]
[310291972,1704463900557,-151.0,0.00030958,7]
[310291973,1704463900566,-151.0,0.00030958,7]
[310291974,1704463900576,-161.3155,0.00030958,7]
[310291975,1704463900586,-161.3155,0.00030958,7]
[310291976,1704463900596,-163.4,0.00030958,7]
[310291977,1704463900607,-163.4,0.00030958,7]
[310291978,1704463900619,-151.0,0.00030958,7]
[310291979,1704463900630,-151.0,0.00030958,7]
[310291980,1704463900639,-151.0,0.00030958,7]
[310291981,1704463900647,-151.0,0.00030958,7]
[310291982,1704463900659,-10000.0,0.00030958,7]
[310291983,1704463900668,-10000.0,0.00030958,7]
[310291984,1704463900678,-4473.142131,0.00030958,7]
[310291985,1704463900687,-4473.142132,0.00030958,7]
[310291986,1704463900697,-185.208853,0.00030958,7]
[310291987,1704463900706,-185.208859,0.00030958,7]
[310291988,1704463900716,-67758.8169946,0.00030996,2]
[310291989,1704463900725,-2555.9651129,0.00030996,2]
[310291990,1704463900735,-2719.5024159,0.00030996,2]
[310291991,1704463900745,-365.60499966,0.00030997,2]
[310291992,1704463900754,-50000.0,0.00031,2]
[310291993,1704463900764,-490072.70334076,0.00031,2]
[310291994,1704463900774,-40357.4507681,0.00031,5]
[310291995,1704463900782,-51414.21626362,0.00031,4]
[310291996,1704463900792,-1500.0,0.00031,2]
[310291997,1704463900801,-1450.0,0.00031,3]
[310291998,1704463900811,-251.590277,0.00031,7]
[310291999,1704463900820,-151.0,0.00031,7]
[310292000,1704463900829,-167.721394,0.00031,3]
[310292001,1704463900839,-150.0,0.00031,3]
[310292002,1704463900850,-3000.0,0.00031,2]
[310292003,1704463900859,-304.531688,0.00031,2]
[310292004,1704463900869,-300.0,0.00031,3]
[310292005,1704463900879,-373.253428,0.00031,2]
[310292006,1704463900890,-1963.278673,0.00031,2]
[310292007,1704463900900,-1000.0,0.00031,2]
[310292008,1704463900909,-50000.0,0.00031038,7]
[310292009,1704463900919,-50000.0,0.00031038,7]
[310292010,1704463900929,-50000.0,0.00031038,7]
[310292011,1704463900940,-1000.0,0.00031038,7]
[310292012,1704463900950,-153.84,0.0003105,2]
[310292013,1704463900959,-19149.81498789,0.000311,4]
[310292014,1704463900968,-151.0,0.00031151,7]
[310292015,1704463900978,-500.0,0.00031151,2]
[310292016,1704463900988,-627.57650792,0.00031151,2]
[310292017,1704463900996,-267.28576842,0.00031151,2]
[310292018,1704463901006,-552.45954077,0.00031151,2]
[310292019,1704463901016,-500.0,0.00031151,2]
[310292020,1704463901025,-317.13299949,0.00031151,2]
[310292021,1704463901035,-172.53534131,0.00031151,2]
[310292022,1704463901046,-525.31280571,0.00031151,2]
[310292023,1704463901056,-500.0,0.00031151,2]
[310292024,1704463901065,-510.61454529,0.00031151,2]
[310292025,1704463901075,-500.0,0.00031151,2]
[310292026,1704463901085,-173.17,0.00031151,2]
[310292027,1704463901095,-500.0,0.00031151,2]
[310292028,1704463901104,-502.3259069,0.00031151,2]
[310292029,1704463901114,-403.14598178,0.00031151,2]
[310292030,1704463901123,-511.73915975,0.00031151,2]
[310292031,1704463901134,-500.0,0.00031151,2]
[310292032,1704463901143,-500.0,0.00031151,2]
[310292033,1704463901153,-500.0,0.00031151,15]
[310292034,1704463901163,-500.0,0.00031151,2]
[310292035,1704463901173,-1000.80139544,0.00031151,2]
[310292036,1704463901183,-500.0,0.00031151,2]
[310292037,1704463901192,-503.11470788,0.00031151,2]
[310292038,1704463901201,-500.0,0.00031151,2]
[310292039,1704463901211,-509.17867137,0.00031151,2]
[310292040,1704463901221,-567.86918522,0.00031151,2]
[310292041,1704463901230,-500.0,0.00031151,2]
[310292042,1704463901239,-316.75285666,0.00031151,2]
[310292043,1704463901249,-500.0,0.00031151,2]
[310292044,1704463901258,-597.4094452,0.00031151,2]
[310292045,1704463901268,-507.51078954,0.00031151,2]
[310292046,1704463901277,-527.27535902,0.00031151,2]
[310292047,1704463901286,-500.0,0.00031151,2]
[310292048,1704463901296,-500.0,0.00031151,2]
[310292049,1704463901305,-500.0,0.00031151,2]
[310292050,1704463901315,-518.52713058,0.00031151,2]
[310292051,1704463901324,-502.55747134,0.00031151,2]
[310292052,1704463901334,-500.0,0.00031151,2]
[310292053,1704463901343,-606.18505652,0.00031151,2]
[310292054,1704463901353,-500.0,0.00031151,2]
[310292055,1704463901362,-500.0,0.00031151,2]
[310292056,1704463901371,-1444.79,0.00031151,2]
[310292057,1704463901381,-500.0,0.00031151,2]
[310292058,1704463901391,-315.65093409,0.00031151,2]
[310292059,1704463901400,-604.83207,0.00031151,2]
[310292060,1704463901409,-947.41,0.00031151,2]
[310292061,1704463901418,-500.0,0.00031151,2]
[310292062,1704463901429,-500.0,0.00031151,2]
[310292063,1704463901439,-500.0,0.00031151,2]
[310292064,1704463901451,-2917.19,0.00031151,2]
[310292065,1704463901461,-500.0,0.00031151,2]
[310292066,1704463901471,-500.0,0.00031151,2]
[310292067,1704463901480,-1039.42,0.00031151,2]
[310292068,1704463901490,-500.0,0.00031151,2]
[310292069,1704463901500,-588.09,0.00031151,2]
[310292070,1704463901510,-500.0,0.00031151,2]
[310292071,1704463901519,-500.0,0.00031151,2]
[310292072,1704463901528,-984.84,0.00031151,2]
[310292073,1704463901538,-1577.2,0.00031151,2]
[310292074,1704463901547,-500.0,0.00031151,2]
[310292075,1704463901557,-500.0,0.00031151,2]
[310292076,1704463901566,-1004.25,0.00031151,2]
[310292077,1704463901576,-500.0,0.00031151,2]
[310292078,1704463901586,-500.0,0.00031151,2]
[310292079,1704463901595,-941.19,0.00031151,2]
[310292080,1704463901605,-500.0,0.00031151,2]
[310292081,1704463901615,-500.0,0.00031151,2]
[310292082,1704463901625,-587.5,0.00031151,2]
[310292083,1704463901635,-500.0,0.00031151,2]
[310292084,1704463901645,-262.56472214,0.00031151,2]
[310292085,1704463901655,-684.69,0.00031151,2]
[310292086,1704463901665,-500.0,0.00031151,2]
[310292087,1704463901675,-500.0,0.00031151,2]
[310292088,1704463901685,-502.66,0.00031151,2]
[310292089,1704463901695,-500.0,0.00031151,2]
[310292090,1704463901704,-1249.93,0.00031151,2]
[310292091,1704463901713,-700.39,0.00031151,2]
[310292092,1704463901723,-960.04,0.00031151,2]
[310292093,1704463901733,-500.0,0.00031151,2]
[310292094,1704463901742,-500.0,0.00031151,2]
[310292095,1704463901754,-537.41,0.00031151,2]
[310292096,1704463901766,-667.92,0.00031151,2]
[310292097,1704463901775,-510.05,0.00031151,2]
[310292098,1704463901785,-978.16,0.00031151,2]
[310292099,1704463901795,-500.0,0.00031151,2]
[310292100,1704463901805,-945.97,0.00031151,2]
[310292101,1704463901814,-1019.98,0.00031151,2]
[310292102,1704463901824,-500.0,0.00031151,2]
[310292103,1704463901834,-803.57,0.00031151,2]
[310292104,1704463901844,-889.76,0.00031151,2]
[310292105,1704463901854,-336.97034517,0.00031151,2]
[310292106,1704463901863,-610.92,0.00031151,2]
[310292107,1704463901873,-440.84278781,0.00031151,2]
[310292108,1704463901882,-605.09,0.00031151,2]
[310292109,1704463901892,-320.38152469,0.00031151,2]
[310292110,1704463901902,-500.0,0.00031151,2]
[310292111,1704463901912,-571.57,0.00031151,2]
[310292112,1704463901922,-515.77984487,0.00031151,2]
[310292113,1704463901931,-500.0,0.00031151,2]
[310292114,1704463901941,-500.0,0.00031151,2]
[310292115,1704463901951,-500.0,0.00031151,2]
[310292116,1704463901960,-500.0,0.00031151,2]
[310292117,1704463901970,-500.0,0.00031151,2]
[310292118,1704463901979,-500.0,0.00031151,2]
[310292119,1704463901988,-500.0,0.00031151,2]
[310292120,1704463901998,-237.36491356,0.00031151,2]
[310292121,1704463902007,-1000.0,0.00031168,7]
[310292122,1704463902017,-1000.0,0.00031168,7]
[310292123,1704463902026,-50000.0,0.00031168,7]
[310292124,1704463902035,-1000.0,0.00031168,7]
[310292125,1704463902045,-1000.0,0.00031168,7]
[310292126,1704463902055,-189.1826,0.0003121,2]
[310292127,1704463902065,-72061.462616,0.00031211,2]
[310292128,1704463902074,-2713.346025,0.00031211,2]
[310292129,1704463902084,-2886.9529686,0.00031211,2]
[310292130,1704463902094,-151.0,0.00031231,7]
[310292131,1704463902104,-630.39522324,0.00031232,2]
[310292132,1704463902115,-500.0,0.00031232,2]
[310292133,1704463902125,-500.0,0.00031232,2]
[310292134,1704463902134,-500.0,0.00031232,2]
[310292135,1704463902144,-500.0,0.00031232,2]
[310292136,1704463902154,-578.99,0.00031232,2]
[310292137,1704463902163,-570.77,0.00031232,2]
[310292138,1704463902174,-588.96079726,0.00031232,2]
[310292139,1704463902183,-500.0,0.00031232,2]
[310292140,1704463902193,-500.0,0.00031232,2]
[310292141,1704463902202,-500.0,0.00031232,2]
[310292142,1704463902211,-500.0,0.00031232,2]
[310292143,1704463902221,-500.0,0.00031232,2]
[310292144,1704463902231,-500.0,0.00031232,2]
[310292145,1704463902240,-500.0,0.00031232,2]
[310292146,1704463902251,-522.74383862,0.00031232,2]
[310292147,1704463902260,-500.0,0.00031232,2]
[310292148,1704463902269,-500.0,0.00031232,2]
[310292149,1704463902278,-500.0,0.00031232,2]
[310292150,1704463902288,-425.46289081,0.00031232,2]
[310292151,1704463902299,-500.0,0.00031232,2]
[310292152,1704463902308,-964.18,0.00031232,2]
[310292153,1704463902318,-500.0,0.00031232,2]
[310292154,1704463902327,-500.0,0.00031232,2]
[310292155,1704463902337,-553.53981639,0.00031232,2]
[310292156,1704463902347,-500.0,0.00031232,2]
[310292157,1704463902356,-500.0,0.00031232,2]
[310292158,1704463902366,-611.03722368,0.00031232,2]
[310292159,1704463902375,-500.0,0.00031232,2]
[310292160,1704463902384,-500.0,0.00031232,2]
[310292161,1704463902394,-500.0,0.00031232,2]
[310292162,1704463902404,-500.0,0.00031232,2]
[310292163,1704463902414,-500.0,0.00031232,2]
[310292164,1704463902423,-614.9601111,0.00031232,2]
[310292165,1704463902433,-500.0,0.00031232,2]
[310292166,1704463902442,-500.0,0.00031232,2]
[310292167,1704463902451,-500.0,0.00031232,2]
[310292168,1704463902461,-155.20422328,0.00031232,2]
[310292169,1704463902471,-157.34240281,0.00031232,2]
[310292170,1704463902480,-500.0,0.00031232,2]
[310292171,1704463902490,-244.31790233,0.00031232,2]
[310292172,1704463902500,-500.0,0.00031232,2]
[310292173,1704463902509,-500.0,0.00031232,2]
[310292174,1704463902518,-500.0,0.00031232,2]
[310292175,1704463902528,-500.0,0.00031232,2]
[310292176,1704463902537,-557.60626702,0.00031232,2]
[310292177,1704463902548,-546.50381034,0.00031232,2]
[310292178,1704463902558,-500.0,0.00031232,2]
[310292179,1704463902568,-500.0,0.00031232,2]
[310292180,1704463902577,-500.0,0.00031232,2]
[310292181,1704463902586,-500.0,0.00031232,2]
[310292182,1704463902597,-500.0,0.00031232,2]
[310292183,1704463902607,-500.0,0.00031232,2]
[310292184,1704463902621,-500.0,0.00031232,2]
[310292185,1704463902630,-500.0,0.00031232,2]
[310292186,1704463902639,-500.0,0.00031232,2]
[310292187,1704463902649,-500.0,0.00031232,2]
[310292188,1704463902660,-500.0,0.00031232,2]
[310292189,1704463902669,-500.0,0.00031232,2]
[310292190,1704463902680,-500.0,0.00031232,2]
[310292191,1704463902690,-500.0,0.00031232,2]
[310292192,1704463902700,-776.92,0.00031232,2]
[310292193,1704463902711,-500.0,0.00031232,2]
[310292194,1704463902721,-500.0,0.00031232,2]
[310292195,1704463902731,-500.0,0.00031232,2]
[310292196,1704463902741,-500.0,0.00031232,2]
[310292197,1704463902750,-500.0,0.00031232,2]
[310292198,1704463902759,-500.0,0.00031232,2]
[310292199,1704463902769,-500.0,0.00031232,2]
[310292200,1704463902778,-500.0,0.00031232,2]
[310292201,1704463902788,-500.0,0.00031232,2]
[310292202,1704463902799,-591.64669086,0.00031232,2]
[310292203,1704463902808,-500.0,0.00031232,2]
[310292204,1704463902818,-500.0,0.00031232,2]
[310292205,1704463902827,-754.78,0.00031232,2]
[310292206,1704463902837,-500.0,0.00031232,2]
[310292207,1704463902846,-608.57,0.00031232,2]
[310292208,1704463902856,-500.0,0.00031232,2]
[310292209,1704463902865,-618.50755897,0.00031232,2]
[310292210,1704463902875,-500.0,0.00031232,2]
[310292211,1704463902884,-500.0,0.00031232,2]
[310292212,1704463902894,-500.0,0.00031232,2]
[310292213,1704463902903,-500.0,0.00031232,2]
[310292214,1704463902912,-500.0,0.00031232,2]
[310292215,1704463902921,-168.95277957,0.00031232,2]
[310292216,1704463902931,-500.0,0.00031232,2]
[310292217,1704463902940,-574.49,0.00031232,2]
[310292218,1704463902950,-500.0,0.00031232,2]
[310292219,1704463902959,-500.0,0.00031232,2]
[310292220,1704463902968,-500.0,0.00031232,2]
[310292221,1704463902977,-500.0,0.00031232,2]
[310292222,1704463902987,-500.0,0.00031232,2]
[310292223,1704463902997,-597.18,0.00031232,2]
[310292224,1704463903006,-500.0,0.00031232,2]
[310292225,1704463903015,-500.0,0.00031232,2]
[310292226,1704463903025,-485.90105959,0.00031232,2]
[310292227,1704463903033,-500.0,0.00031232,2]
[310292228,1704463903042,-607.88151682,0.00031232,2]
[310292229,1704463903053,-500.0,0.00031232,2]
[310292230,1704463903063,-1000.0,0.00031232,2]
[310292231,1704463903073,-500.0,0.00031232,2]
[310292232,1704463903084,-535.87,0.00031232,2]
[310292233,1704463903094,-500.0,0.00031232,2]
[310292234,1704463903103,-270.13912685,0.00031232,2]
[310292235,1704463903112,-500.0,0.00031232,2]
[310292236,1704463903122,-500.0,0.00031232,2]
[310292237,1704463903131,-500.0,0.00031232,2]
[310292238,1704463903141,-163.66991905,0.00031232,2]
[310292239,1704463903149,-500.0,0.00031232,2]
[310292240,1704463903159,-500.0,0.00031232,2]
[310292241,1704463903169,-500.0,0.00031232,2]
[310292242,1704463903178,-521.7006854,0.00031232,2]
[310292243,1704463903187,-500.0,0.00031232,2]
[310292244,1704463903196,-500.0,0.00031232,2]
[310292245,1704463903206,-500.0,0.00031232,2]
[310292246,1704463903215,-500.0,0.00031232,2]
[310292247,1704463903225,-363.20788242,0.00031232,2]
[310292248,1704463903234,-500.0,0.00031232,2]
[310292249,1704463903245,-847.71,0.00031232,2]
[310292250,1704463903257,-575.19018151,0.00031232,2]
[310292251,1704463903266,-207.70733439,0.00031232,2]
[310292252,1704463903276,-500.0,0.00031232,2]
[310292253,1704463903284,-457.39784528,0.00031232,2]
[310292254,1704463903294,-500.0,0.00031232,2]
[310292255,1704463903303,-500.0,0.00031232,2]
[310292256,1704463903313,-500.0,0.00031232,2]
[310292257,1704463903323,-500.0,0.00031232,2]
[310292258,1704463903332,-500.0,0.00031232,2]
[310292259,1704463903342,-500.0,0.00031232,2]
[310292260,1704463903351,-500.0,0.00031232,2]
[310292261,1704463903361,-500.0,0.00031232,2]
[310292262,1704463903370,-500.0,0.00031232,2]
[310292263,1704463903379,-500.0,0.00031232,2]
[310292264,1704463903389,-500.0,0.00031232,2]
[310292265,1704463903398,-939.06,0.00031232,2]
[310292266,1704463903606,-500.0,0.00031232,2]
[310292267,1704463903617,-500.0,0.00031232,2]
[310292268,1704463903626,-500.0,0.00031232,2]
[310292269,1704463903636,-640.94203821,0.00031232,2]
[310292270,1704463903646,-500.0,0.00031232,2]
[310292271,1704463903656,-500.0,0.00031232,2]
[310292272,1704463903665,-500.0,0.00031232,2]
[310292273,1704463903675,-500.0,0.00031232,2]
[310292274,1704463903684,-500.0,0.00031232,2]
[310292275,1704463903694,-500.0,0.00031232,2]
[310292276,1704463903704,-617.42,0.00031232,2]
[310292277,1704463903714,-500.0,0.00031232,2]
[310292278,1704463903723,-500.0,0.00031232,2]
[310292279,1704463903733,-500.0,0.00031232,2]
[310292280,1704463903743,-500.0,0.00031232,2]
[310292281,1704463903753,-577.98753626,0.00031232,2]
[310292282,1704463903763,-500.0,0.00031232,2]
[310292283,1704463903773,-309.17943738,0.00031232,2]
[310292284,1704463903782,-763.35,0.00031232,2]
[310292285,1704463903792,-500.0,0.00031232,2]
[310292286,1704463903810,-581.06,0.00031232,2]
[310292287,1704463903819,-500.0,0.00031232,2]
[310292288,1704463903829,-533.25,0.00031232,2]
[310292289,1704463903839,-500.0,0.00031232,2]
[310292290,1704463903851,-500.0,0.00031232,2]
[310292291,1704463903861,-1032.57,0.00031232,2]
[310292292,1704463903871,-500.0,0.00031232,2]
[310292293,1704463903881,-668.81,0.00031232,2]
[310292294,1704463903891,-500.0,0.00031232,2]
[310292295,1704463903901,-897.42,0.00031232,2]
[310292296,1704463903911,-500.0,0.00031232,2]
[310292297,1704463903922,-500.0,0.00031232,2]
[310292298,1704463903932,-610.9,0.00031232,2]
[310292299,1704463903943,-542.23,0.00031232,2]
[310292300,1704463903953,-500.0,0.00031232,2]
[310292301,1704463903963,-214.87609304,0.00031232,2]
[310292302,1704463903973,-500.0,0.00031232,2]
[310292303,1704463903982,-258.91101521,0.00031232,2]
[310292304,1704463903992,-500.0,0.00031232,2]
[310292305,1704463904001,-500.0,0.00031232,2]
[310292306,1704463904011,-977.28,0.00031232,2]
[310292307,1704463904022,-500.0,0.00031232,2]
[310292308,1704463904030,-500.0,0.00031232,2]
[310292309,1704463904039,-500.0,0.00031232,2]
[310292310,1704463904052,-500.0,0.00031232,2]
[310292311,1704463904061,-256.50614755,0.00031232,2]
[310292312,1704463904071,-564.72,0.00031232,2]
[310292313,1704463904081,-500.0,0.00031232,2]
[310292314,1704463904090,-500.0,0.00031232,2]
[310292315,1704463904099,-623.13,0.00031232,2]
[310292316,1704463904108,-500.0,0.00031232,2]
[310292317,1704463904118,-500.0,0.00031232,2]
[310292318,1704463904127,-660.13,0.00031232,2]
[310292319,1704463904136,-500.0,0.00031232,2]
[310292320,1704463904145,-500.0,0.00031232,2]
[310292321,1704463904155,-1107.9,0.00031232,2]
[310292322,1704463904164,-500.0,0.00031232,2]
[310292323,1704463904174,-500.0,0.00031232,2]
[310292324,1704463904184,-500.0,0.00031232,2]
[310292325,1704463904193,-500.0,0.00031232,2]
[310292326,1704463904203,-500.0,0.00031232,2]
[310292327,1704463904213,-182.70900112,0.00031232,2]
[310292328,1704463904222,-500.0,0.00031232,2]
[310292329,1704463904232,-534.02,0.00031232,2]
[310292330,1704463904241,-500.0,0.00031232,2]
[310292331,1704463904250,-1001.59,0.00031232,2]
[310292332,1704463904259,-500.0,0.00031232,2]
[310292333,1704463904268,-500.0,0.00031232,2]
[310292334,1704463904278,-500.0,0.00031232,2]
[310292335,1704463904287,-500.0,0.00031232,2]
[310292336,1704463904299,-500.0,0.00031232,2]
[310292337,1704463904309,-500.0,0.00031232,2]
[310292338,1704463904318,-500.0,0.00031232,2]
[310292339,1704463904327,-500.0,0.00031232,2]
[310292340,1704463904337,-577.73,0.00031232,2]
[310292341,1704463904347,-500.0,0.00031232,2]
[310292342,1704463904357,-500.0,0.00031232,2]
[310292343,1704463904366,-386.85269049,0.00031232,2]
[310292344,1704463904375,-515.35,0.00031232,2]
[310292345,1704463904385,-500.0,0.00031232,2]
[310292346,1704463904394,-160.85216029,0.00031232,2]
[310292347,1704463904404,-500.0,0.00031232,2]
[310292348,1704463904413,-500.0,0.00031232,2]
[310292349,1704463904423,-528.01,0.00031232,2]
[310292350,1704463904433,-500.0,0.00031232,2]
[310292351,1704463904444,-500.0,0.00031232,2]
[310292352,1704463904456,-500.0,0.00031232,2]
[310292353,1704463904470,-500.0,0.00031232,2]
[310292354,1704463904481,-609.91,0.00031232,2]
[310292355,1704463904491,-500.0,0.00031232,2]
[310292356,1704463904501,-643.30388193,0.00031232,2]
[310292357,1704463904511,-500.0,0.00031232,2]
[310292358,1704463904521,-3164.14,0.00031232,2]
[310292359,1704463904531,-500.0,0.00031232,2]
[310292360,1704463904540,-500.0,0.00031232,2]
[310292361,1704463904553,-500.0,0.00031232,2]
[310292362,1704463904563,-767.51,0.00031232,2]
[310292363,1704463904573,-500.0,0.00031232,2]
[310292364,1704463904582,-500.0,0.00031232,2]
[310292365,1704463904592,-500.0,0.00031232,2]
[310292366,1704463904601,-500.0,0.00031232,2]
[310292367,1704463904612,-500.0,0.00031232,2]
[310292368,1704463904623,-500.0,0.00031232,2]
[310292369,1704463904633,-500.0,0.00031232,2]
[310292370,1704463904643,-500.0,0.00031232,2]
[310292371,1704463904652,-500.0,0.00031232,2]
[310292372,1704463904661,-500.0,0.00031232,2]
[310292373,1704463904671,-500.0,0.00031232,2]
[310292374,1704463904682,-572.23,0.00031232,2]
[310292375,1704463904691,-500.0,0.00031232,2]
[310292376,1704463904704,-500.0,0.00031232,2]
[310292377,1704463904715,-500.0,0.00031232,2]
[310292378,1704463904724,-1043.05,0.00031232,2]
[310292379,1704463904733,-663.96,0.00031232,2]
[310292380,1704463904743,-500.0,0.00031232,2]
[310292381,1704463904752,-500.0,0.00031232,2]
[310292382,1704463904762,-969.42,0.00031232,2]
[310292383,1704463904771,-500.0,0.00031232,2]
[310292384,1704463904781,-500.0,0.00031232,2]
[310292385,1704463904790,-554.84032318,0.00031232,2]
[310292386,1704463904802,-500.0,0.00031232,2]
[310292387,1704463904811,-500.0,0.00031232,2]
[310292388,1704463904822,-500.0,0.00031232,2]
[310292389,1704463904832,-951.95,0.00031232,2]
[310292390,1704463904842,-500.0,0.00031232,2]
[310292391,1704463904852,-500.0,0.00031232,2]
[310292392,1704463904862,-500.0,0.00031232,2]
[310292393,1704463904873,-500.0,0.00031232,2]
[310292394,1704463904883,-500.0,0.00031232,2]
[310292395,1704463904893,-500.0,0.00031232,2]
[310292396,1704463904903,-500.0,0.00031232,2]
[310292397,1704463904912,-585.0,0.00031232,2]
[310292398,1704463904921,-795.33,0.00031232,2]
[310292399,1704463904931,-500.0,0.00031232,2]
[310292400,1704463904940,-500.0,0.00031232,2]
[310292401,1704463904950,-500.0,0.00031232,2]
[310292402,1704463904959,-500.0,0.00031232,2]
[310292403,1704463904969,-500.0,0.00031232,2]
[310292404,1704463904979,-500.0,0.00031232,2]
[310292405,1704463904988,-500.0,0.00031232,2]
[310292406,1704463904998,-261.02550805,0.00031232,2]
[310292407,1704463905008,-204.10028026,0.00031232,2]
[310292408,1704463905017,-500.0,0.00031232,2]
[310292409,1704463905026,-535.25,0.00031232,2]
[310292410,1704463905036,-500.0,0.00031232,2]
[310292411,1704463905046,-573.11,0.00031232,2]
[310292412,1704463905055,-500.0,0.00031232,2]
[310292413,1704463905065,-1278.92,0.00031232,2]
[310292414,1704463905074,-500.0,0.00031232,2]
[310292415,1704463905084,-500.0,0.00031232,2]
[310292416,1704463905094,-522.9,0.00031232,2]
[310292417,1704463905103,-1115.46,0.00031232,2]
[310292418,1704463905112,-500.0,0.00031232,2]
[310292419,1704463905122,-500.0,0.00031232,2]
[310292420,1704463905131,-500.0,0.00031232,2]
[310292421,1704463905140,-500.0,0.00031232,2]
[310292422,1704463905150,-503.15,0.00031232,2]
[310292423,1704463905159,-500.0,0.00031232,2]
[310292424,1704463905169,-500.0,0.00031232,2]
[310292425,1704463905178,-500.0,0.00031232,2]
[310292426,1704463905187,-500.0,0.00031232,2]
[310292427,1704463905196,-898.64,0.00031232,2]
[310292428,1704463905206,-500.0,0.00031232,2]
[310292429,1704463905216,-500.0,0.00031232,2]
[310292430,1704463905226,-521.81106668,0.00031232,2]
[310292431,1704463905235,-500.0,0.00031232,2]
[310292432,1704463905245,-2197.46,0.00031232,2]
[310292433,1704463905254,-500.0,0.00031232,2]
[310292434,1704463905263,-1050.63,0.00031232,2]
[310292435,1704463905273,-560.28048264,0.00031232,2]
[310292436,1704463905282,-500.0,0.00031232,2]
[310292437,1704463905292,-500.0,0.00031232,2]
[310292438,1704463905303,-520.64194557,0.00031232,2]
[310292439,1704463905313,-500.0,0.00031232,2]
[310292440,1704463905322,-512.25,0.00031232,2]
[310292441,1704463905331,-500.0,0.00031232,2]
[310292442,1704463905341,-500.0,0.00031232,2]
[310292443,1704463905351,-500.0,0.00031232,2]
[310292444,1704463905361,-652.42,0.00031232,2]
[310292445,1704463905370,-500.0,0.00031232,2]
[310292446,1704463905380,-500.0,0.00031232,2]
[310292447,1704463905389,-500.96,0.00031232,2]
[310292448,1704463905399,-500.0,0.00031232,2]
[310292449,1704463905408,-500.0,0.00031232,2]
[310292450,1704463905417,-500.0,0.00031232,2]
[310292451,1704463905427,-737.52,0.00031232,2]
[310292452,1704463905437,-500.0,0.00031232,2]
[310292453,1704463905446,-547.64930381,0.00031232,2]
[310292454,1704463905458,-500.0,0.00031232,2]
[310292455,1704463905467,-500.0,0.00031232,2]